fUSD/lending_fUSD_20241222
["ID","MTS","AMOUNT","RATE_DAILY","PERIOD"]
[346281161,1734864638413,-500.0,0.00019178,2]
[346281164,1734864638423,-500.0,0.00019178,2]
[346281165,1734864638433,-500.0,0.00019178,2]
[346281167,1734864638444,-500.0,0.00019178,2]
[346281169,1734864638453,-500.0,0.00019178,2]
[346281171,1734864638462,-500.0,0.00019178,2]
[346281173,1734864638471,-500.0,0.00019178,2]
[346281175,1734864638480,-500.0,0.00019178,2]
[346281177,1734864638489,-500.0,0.00019178,2]
[346281179,1734864638498,-500.0,0.00019178,2]
[346281181,1734864638507,-348.2026093,0.00019178,2]
[346281183,1734864638516,-500.0,0.00019178,2]
[346281185,1734864638525,-500.0,0.00019178,2]
[346281187,1734864638534,-500.0,0.00019178,2]
[346281189,1734864638543,-500.0,0.00019178,2]
[346281191,1734864638552,-500.0,0.00019178,2]
[346281193,1734864638561,-500.0,0.00019178,2]
[346281195,1734864638570,-500.0,0.00019178,2]
[346281197,1734864638579,-500.0,0.00019178,2]
[346281199,1734864638589,-500.0,0.00019178,2]
[346281201,1734864638598,-500.0,0.00019178,2]
[346281203,1734864638608,-500.0,0.00019178,2]
[346281205,1734864638617,-500.0,0.00019178,2]
[346281207,1734864638626,-500.0,0.00019178,2]
[346281209,1734864638635,-500.0,0.00019178,2]
[346281211,1734864638644,-502.8805738,0.00019178,2]
[346281212,1734864638653,-500.0,0.00019178,2]
[346281214,1734864638662,-500.0,0.00019178,2]
[346281216,1734864638671,-500.0,0.00019178,2]
[346281218,1734864638680,-500.0,0.00019178,2]
[346281220,1734864638689,-504.09844633,0.00019178,2]
[346281222,1734864638698,-500.0,0.00019178,2]
[346281224,1734864638707,-500.0,0.00019178,2]
[346281226,1734864638716,-500.0,0.00019178,2]
[346281228,1734864638725,-500.0,0.00019178,2]
[346281230,1734864638734,-500.0,0.00019178,2]
[346281232,1734864638743,-500.0,0.00019178,2]
[346281234,1734864638752,-500.0,0.00019178,2]
[346281236,1734864638761,-500.0,0.00019178,2]
[346281238,1734864638770,-500.0,0.00019178,2]
[346281240,1734864638779,-500.0,0.00019178,2]
[346281242,1734864638788,-305.0,0.00019178,2]
[346281244,1734864638797,-500.0,0.00019178,2]
[346281246,1734864638806,-500.0,0.00019178,2]
[346281248,1734864638815,-514.11221883,0.00019178,2]
[346281250,1734864638823,-500.0,0.00019178,2]
[346281252,1734864638833,-500.0,0.00019178,2]
[346281254,1734864638842,-500.0,0.00019178,2]
[346281256,1734864638851,-500.0,0.00019178,2]
[346281258,1734864638861,-500.0,0.00019178,2]
[346281260,1734864638870,-500.0,0.00019178,2]
[346281262,1734864638879,-500.0,0.00019178,2]
[346281264,1734864638888,-500.0,0.00019178,2]
[346281266,1734864638898,-500.0,0.00019178,2]
[346281268,1734864638909,-500.0,0.00019178,2]
[346281270,1734864638919,-500.0,0.00019178,2]
[346281272,1734864638928,-500.0,0.00019178,2]
[346281274,1734864638937,-500.0,0.00019178,2]
[346281276,1734864638946,-500.0,0.00019178,2]
[346281278,1734864638955,-500.0,0.00019178,2]
[346281280,1734864638964,-500.0,0.00019178,2]
[346281282,1734864638973,-500.0,0.00019178,2]
[346281284,1734864638983,-500.0,0.00019178,2]
[346281286,1734864638992,-500.0,0.00019178,2]
[346281288,1734864639001,-500.0,0.00019178,2]
[346281290,1734864639010,-500.0,0.00019178,2]
[346281292,1734864639019,-678.33,0.00019178,2]
[346281294,1734864639029,-500.0,0.00019178,2]
[346281296,1734864639038,-500.0,0.00019178,2]
[346281298,1734864639047,-500.0,0.00019178,2]
[346281300,1734864639057,-500.0,0.00019178,2]
[346281302,1734864639066,-500.0,0.00019178,2]
[346281304,1734864639076,-500.0,0.00019178,2]
[346281306,1734864639085,-500.0,0.00019178,2]
[346281308,1734864639094,-500.0,0.00019178,2]
[346281310,1734864639104,-500.0,0.00019178,2]
[346281312,1734864639113,-505.63507947,0.00019178,2]
[346281314,1734864639122,-500.0,0.00019178,2]
[346281316,1734864639130,-500.0,0.00019178,2]
[346281318,1734864639139,-500.0,0.00019178,2]
[346281320,1734864639148,-500.0,0.00019178,2]
[346281321,1734864639157,-613.75227107,0.00019178,2]
[346281323,1734864639166,-500.0,0.00019178,2]
[346281326,1734864639176,-500.0,0.00019178,2]
[346281327,1734864639185,-500.0,0.00019178,2]
[346281330,1734864639198,-500.0,0.00019178,2]
[346281331,1734864639207,-500.0,0.00019178,2]
[346281333,1734864639217,-500.0,0.00019178,2]
[346281335,1734864639226,-500.0,0.00019178,2]
[346281337,1734864639236,-500.0,0.00019178,2]
[346281340,1734864639247,-500.0,0.00019178,2]
[346281341,1734864639257,-500.0,0.00019178,2]
[346281344,1734864639266,-500.0,0.00019178,2]
[346281346,1734864639275,-500.0,0.00019178,2]
[346281347,1734864639284,-500.0,0.00019178,2]
[346281349,1734864639294,-500.0,0.00019178,2]
[346281352,1734864639303,-500.0,0.00019178,2]
[346281354,1734864639312,-500.0,0.00019178,2]
[346281355,1734864639321,-500.0,0.00019178,2]
[346281357,1734864639330,-500.0,0.00019178,2]
[346281358,1734864639339,-500.0,0.00019178,2]
[346281359,1734864639348,-500.0,0.00019178,2]
[346281360,1734864639357,-519.6306687,0.00019178,2]
[346281361,1734864639367,-500.0,0.00019178,2]
[346281362,1734864639376,-500.0,0.00019178,2]
[346281363,1734864639385,-500.0,0.00019178,2]
[346281364,1734864639393,-500.0,0.00019178,2]
[346281365,1734864639402,-500.0,0.00019178,2]
[346281366,1734864639411,-590.20169151,0.00019178,2]
[346281367,1734864639420,-500.0,0.00019178,2]
[346281368,1734864639429,-500.0,0.00019178,2]
[346281369,1734864639440,-500.0,0.00019178,2]
[346281370,1734864639450,-500.0,0.00019178,2]
[346281371,1734864639459,-500.0,0.00019178,2]
[346281372,1734864639468,-500.0,0.00019178,2]
[346281373,1734864639477,-500.0,0.00019178,2]
[346281374,1734864639486,-500.0,0.00019178,2]
[346281375,1734864639495,-500.0,0.00019178,2]
[346281376,1734864639505,-577.93,0.00019178,2]
[346281377,1734864639514,-500.0,0.00019178,2]
[346281378,1734864639523,-1251.58,0.00019178,2]
[346281379,1734864639532,-528.47421814,0.00019178,2]
[346281380,1734864639542,-500.0,0.00019178,2]
[346281382,1734864639551,-999.23,0.00019178,2]
[346281383,1734864639560,-500.0,0.00019178,2]
[346281384,1734864639569,-513.39550458,0.00019178,2]
[346281385,1734864639578,-480.56677277,0.00019178,2]
[346281386,1734864639587,-500.0,0.00019178,2]
[346281387,1734864639597,-500.0,0.00019178,2]
[346281389,1734864639606,-2058.66,0.00019178,2]
[346281390,1734864639615,-500.0,0.00019178,2]
[346281391,1734864639624,-500.0,0.00019178,2]
[346281392,1734864639634,-500.0,0.00019178,2]
[346281393,1734864639643,-500.0,0.00019178,2]
[346281394,1734864639653,-500.0,0.00019178,2]
[346281395,1734864639662,-500.0,0.00019178,2]
[346281396,1734864639671,-500.0,0.00019178,2]
[346281397,1734864639680,-500.0,0.00019178,2]
[346281398,1734864639689,-545.45,0.00019178,2]
[346281399,1734864639841,-1000.0,0.00019178,2]
[346281400,1734864639852,-500.0,0.00019178,2]
[346281401,1734864639862,-500.0,0.00019178,2]
[346281402,1734864639871,-754.63,0.00019178,2]
[346281403,1734864639881,-500.0,0.00019178,2]
[346281404,1734864639891,-500.0,0.00019178,2]
[346281405,1734864639900,-500.0,0.00019178,2]
[346281406,1734864639913,-500.0,0.00019178,2]
[346281407,1734864639923,-500.0,0.00019178,2]
[346281408,1734864639933,-500.0,0.00019178,2]
[346281409,1734864639942,-500.0,0.00019178,2]
[346281410,1734864639951,-500.0,0.00019178,2]
[346281411,1734864639961,-500.0,0.00019178,2]
[346281412,1734864639971,-500.0,0.00019178,2]
[346281413,1734864639981,-500.0,0.00019178,2]
[346281414,1734864639990,-500.0,0.00019178,2]
[346281415,1734864639999,-501.87782841,0.00019178,2]
[346281416,1734864640009,-500.0,0.00019178,2]
[346281417,1734864640018,-500.0,0.00019178,2]
[346281418,1734864640027,-500.0,0.00019178,2]
[346281419,1734864640037,-528.51,0.00019178,2]
[346281420,1734864640046,-500.0,0.00019178,2]
[346281421,1734864640055,-500.0,0.00019178,2]
[346281422,1734864640064,-509.97922217,0.00019178,2]
[346281423,1734864640074,-500.0,0.00019178,2]
[346281424,1734864640083,-504.65859499,0.00019178,2]
[346281425,1734864640092,-500.0,0.00019178,2]
[346281426,1734864640101,-500.0,0.00019178,2]
[346281427,1734864640110,-500.0,0.00019178,2]
[346281428,1734864640120,-500.0,0.00019178,2]
[346281429,1734864640129,-500.0,0.00019178,2]
[346281430,1734864640138,-500.0,0.00019178,2]
[346281431,1734864640147,-857.85,0.00019178,2]
[346281432,1734864640157,-1302.69,0.00019178,2]
[346281433,1734864640166,-500.0,0.00019178,2]
[346281434,1734864640175,-500.0,0.00019178,2]
[346281435,1734864640184,-500.0,0.00019178,2]
[346281436,1734864640194,-990.12,0.00019178,2]
[346281437,1734864640203,-500.0,0.00019178,2]
[346281438,1734864640212,-502.16480947,0.00019178,2]
[346281439,1734864640221,-500.0,0.00019178,2]
[346281440,1734864640230,-1743.55,0.00019178,2]
[346281441,1734864640239,-639.48,0.00019178,2]
[346281442,1734864640248,-500.0,0.00019178,2]
[346281443,1734864640257,-535.03,0.00019178,2]
[346281444,1734864640266,-500.0,0.00019178,2]
[346281445,1734864640275,-620.35,0.00019178,2]
[346281446,1734864640284,-501.86286095,0.00019178,2]
[346281447,1734864640294,-500.70572935,0.00019178,2]
[346281448,1734864640303,-575.28,0.00019178,2]
[346281449,1734864640312,-46.60410186,0.00019178,2]
[346281450,1734864640610,-453.39589814,0.00019178,2]
[346281451,1734864640620,-500.0,0.00019178,2]
[346281452,1734864640629,-500.0,0.00019178,2]
[346281453,1734864640639,-500.0,0.00019178,2]
[346281454,1734864640649,-500.0,0.00019178,2]
[346281455,1734864640658,-519.54699318,0.00019178,2]
[346281456,1734864640668,-500.0,0.00019178,2]
[346281457,1734864640676,-500.0,0.00019178,2]
[346281458,1734864640685,-503.8170807,0.00019178,2]
[346281459,1734864640694,-500.0,0.00019178,2]
[346281460,1734864640703,-500.0,0.00019178,2]
[346281461,1734864640713,-500.0,0.00019178,2]
[346281462,1734864640722,-2662.3,0.00019178,2]
[346281463,1734864640731,-500.0,0.00019178,2]
[346281464,1734864640740,-500.0,0.00019178,2]
[346281465,1734864640749,-500.0,0.00019178,2]
[346281466,1734864640758,-500.0,0.00019178,2]
[346281467,1734864640768,-500.0,0.00019178,2]
[346281468,1734864640778,-242.64949068,0.00019178,2]
[346281469,1734864640787,-3569.97,0.00019178,2]
[346281470,1734864640796,-502.46182791,0.00019178,2]
[346281471,1734864640804,-500.0,0.00019178,2]
[346281472,1734864640813,-157.81693713,0.00019178,2]
[346281473,1734864640823,-512.01824928,0.00019178,2]
[346281474,1734864640832,-500.0,0.00019178,2]
[346281475,1734864640841,-500.0,0.00019178,2]
[346281476,1734864640850,-500.0,0.00019178,2]
[346281477,1734864640860,-500.0,0.00019178,2]
[346281478,1734864640869,-791.97,0.00019178,2]
[346281479,1734864640877,-500.0,0.00019178,2]
[346281480,1734864640886,-500.0,0.00019178,2]
[346281481,1734864640895,-500.0,0.00019178,2]
[346281482,1734864640905,-500.0,0.00019178,2]
[346281483,1734864640916,-500.0,0.00019178,2]
[346281484,1734864640925,-500.0,0.00019178,2]
[346281485,1734864640934,-500.0,0.00019178,2]
[346281486,1734864640943,-500.0,0.00019178,2]
[346281487,1734864640952,-500.0,0.00019178,2]
[346281488,1734864640962,-500.0,0.00019178,2]
[346281489,1734864640971,-500.0,0.00019178,2]
[346281490,1734864640980,-500.0,0.00019178,2]
[346281491,1734864640989,-501.26503152,0.00019178,2]
[346281492,1734864640998,-500.0,0.00019178,2]
[346281493,1734864641008,-500.0,0.00019178,2]
[346281494,1734864641017,-500.0,0.00019178,2]
[346281495,1734864641026,-500.0,0.00019178,2]
[346281496,1734864641036,-500.0,0.00019178,2]
[346281497,1734864641045,-595.83808347,0.00019178,2]
[346281498,1734864641054,-500.0,0.00019178,2]
[346281499,1734864641062,-628.68,0.00019178,2]
[346281500,1734864641071,-500.0,0.00019178,2]
[346281501,1734864641080,-500.0,0.00019178,2]
[346281502,1734864641089,-504.14065552,0.00019178,2]
[346281503,1734864641098,-500.0,0.00019178,2]
[346281504,1734864641108,-500.0,0.00019178,2]
[346281505,1734864641116,-639.26305198,0.00019178,2]
[346281506,1734864641125,-500.0,0.00019178,2]
[346281507,1734864641135,-647.13,0.00019178,2]
[346281508,1734864641143,-198.85945785,0.00019178,2]
[346281509,1734864641152,-500.0,0.00019178,2]
[346281510,1734864641161,-500.0,0.00019178,2]
[346281511,1734864641169,-819.85,0.00019178,2]
[346281512,1734864641178,-500.0,0.00019178,2]
[346281513,1734864641188,-500.0,0.00019178,2]
[346281514,1734864641196,-500.0,0.00019178,2]
[346281515,1734864641205,-500.0,0.00019178,2]
[346281516,1734864641214,-495.03465391,0.00019178,2]
[346281517,1734864641223,-8232.98,0.00019178,2]
[346281518,1734864641232,-500.0,0.00019178,2]
[346281519,1734864641241,-500.0,0.00019178,2]
[346281520,1734864641250,-500.0,0.00019178,2]
[346281521,1734864641258,-500.0,0.00019178,2]
[346281522,1734864641267,-500.0,0.00019178,2]
[346281523,1734864641276,-500.0,0.00019178,2]
[346281524,1734864641285,-342.59708191,0.00019178,2]
[346281525,1734864641294,-500.0,0.00019178,2]
[346281526,1734864641303,-500.0,0.00019178,2]
[346281527,1734864641312,-500.0,0.00019178,2]
[346281528,1734864641321,-725.62,0.00019178,2]
[346281529,1734864641330,-3827.88,0.00019178,2]
[346281530,1734864641339,-200.0,0.00019178,2]
[346281531,1734864641347,-3827.88,0.00019178,2]
[346281532,1734864641358,-647.42,0.00019178,2]
[346281533,1734864641367,-502.52203485,0.00019178,2]
[346281534,1734864641375,-507.86316358,0.00019178,2]
[346281535,1734864641384,-500.0,0.00019178,2]
[346281536,1734864641393,-500.0,0.00019178,2]
[346281537,1734864641402,-504.02954351,0.00019178,2]
[346281538,1734864641411,-500.0,0.00019178,2]
[346281539,1734864641420,-268.10046761,0.00019178,2]
[346281540,1734864641429,-500.0,0.00019178,2]
[346281541,1734864641438,-502.11499341,0.00019178,2]
[346281542,1734864641447,-500.0,0.00019178,2]
[346281543,1734864641456,-500.0,0.00019178,2]
[346281544,1734864641465,-500.0,0.00019178,2]
[346281545,1734864641475,-654.18,0.00019178,2]
[346281546,1734864641484,-324.61478509,0.00019178,2]
[346281547,1734864642224,-2906.04992196,0.00018874,2]
[346281548,1734864642233,-176.24824915,0.00019178,2]
[346281549,1734864642242,-514.61134742,0.00019178,2]
[346281550,1734864642252,-500.0,0.00019178,2]
[346281551,1734864642261,-500.0,0.00019178,2]
[346281552,1734864642269,-502.19901165,0.00019178,2]
[346281553,1734864642278,-508.08727053,0.00019178,2]
[346281554,1734864642288,-500.0,0.00019178,2]
[346281555,1734864642298,-505.28381865,0.00019178,2]
[346281556,1734864642307,-150.88015397,0.00019178,2]
[346281557,1734864642316,-500.0,0.00019178,2]
[346281558,1734864642325,-500.0,0.00019178,2]
[346281559,1734864642334,-1248.9,0.00019178,2]
[346281560,1734864642343,-500.0,0.00019178,2]
[346281561,1734864642351,-500.0,0.00019178,2]
[346281562,1734864642363,-500.0,0.00019178,2]
[346281563,1734864642373,-500.0,0.00019178,2]
[346281564,1734864642385,-500.0,0.00019178,2]
[346281565,1734864642395,-578.20414054,0.00019178,2]
[346281567,1734864642404,-512.35,0.00019178,2]
[346281569,1734864642413,-587.46,0.00019178,2]
[346281571,1734864642422,-5000.0,0.00019178,2]
[346281578,1734864642589,-830.49,0.00019178,2]
[346281579,1734864642600,-500.0,0.00019178,2]
[346281580,1734864642610,-500.0,0.00019178,2]
[346281581,1734864642619,-448.80262991,0.00019178,2]
[346281582,1734864642634,-193.89737009,0.00019178,2]
[346281583,1734864642644,-197.6831106,0.00019178,2]
[346281584,1734864642660,-962.13855036,0.00019178,2]
[346281585,1734864642672,-554.08833904,0.00019178,2]
[346281586,1734864642683,-500.0,0.00019178,2]
[346281587,1734864642694,-500.0,0.00019178,2]
[346281588,1734864642703,-500.0,0.00019178,2]
[346281589,1734864642712,-500.0,0.00019178,2]
[346281590,1734864642722,-500.0,0.00019178,2]
[346281591,1734864642731,-500.0,0.00019178,2]
[346281592,1734864642740,-506.10517191,0.00019178,2]
[346281593,1734864642750,-500.0,0.00019178,2]
[346281594,1734864642759,-500.0,0.00019178,2]
[346281595,1734864642768,-500.0,0.00019178,2]
[346281596,1734864642777,-500.0,0.00019178,2]
[346281597,1734864642786,-693.96,0.00019178,2]
[346281598,1734864642795,-500.0,0.00019178,2]
[346281599,1734864642804,-500.0,0.00019178,2]
[346281600,1734864642813,-500.0,0.00019178,2]
[346281601,1734864642822,-500.0,0.00019178,2]
[346281602,1734864642831,-500.0,0.00019178,2]
[346281603,1734864642840,-468.415808,0.00019178,2]
[346281604,1734864642852,-69.134192,0.00019178,2]
[346281605,1734864642861,-500.0,0.00019178,2]
[346281606,1734864642871,-249.19078746,0.00019178,2]
[346281607,1734864642880,-311.56476446,0.00019178,2]
[346281608,1734864642891,-188.43523554,0.00019178,2]
[346281609,1734864642900,-193.44519066,0.00019178,2]
[346281610,1734864642913,-306.55480934,0.00019178,2]
[346281611,1734864642922,-443.16278687,0.00019178,2]
[346281612,1734864642934,-139.24721313,0.00019178,2]
[346281613,1734864642943,-500.0,0.00019178,2]
[346281614,1734864642952,-517.70318571,0.00019178,2]
[346281615,1734864642961,-500.0,0.00019178,2]
[346281616,1734864642971,-511.85327218,0.00019178,2]
[346281617,1734864642980,-439.33964954,0.00019178,2]
[346281618,1734864642995,-60.66035046,0.00019178,2]
[346281619,1734864643004,-500.0,0.00019178,2]
[346281620,1734864643013,-1385.09,0.00019178,2]
[346281621,1734864643022,-501.84561738,0.00019178,2]
[346281622,1734864643031,-500.0,0.00019178,2]
[346281623,1734864643040,-500.0,0.00019178,2]
[346281624,1734864643049,-500.0,0.00019178,2]
[346281625,1734864643058,-500.0,0.00019178,2]
[346281626,1734864643067,-501.73769827,0.00019178,2]
[346281627,1734864643077,-500.0,0.00019178,2]
[346281628,1734864643086,-500.0,0.00019178,2]
[346281629,1734864643095,-500.0,0.00019178,2]
[346281630,1734864643105,-500.0,0.00019178,2]
[346281631,1734864643114,-502.18840695,0.00019178,2]
[346281632,1734864643123,-500.0,0.00019178,2]
[346281633,1734864643132,-543.3142155,0.00019178,2]
[346281634,1734864643142,-500.0,0.00019178,2]
[346281636,1734864643151,-979.7,0.00019178,2]
[346281637,1734864643160,-500.0,0.00019178,2]
[346281638,1734864643170,-500.0,0.00019178,2]
[346281639,1734864643179,-500.0,0.00019178,2]
[346281640,1734864643188,-502.42214327,0.00019178,2]
[346281641,1734864643197,-987.6,0.00019178,2]
[346281642,1734864643206,-2293.17,0.00019178,2]
[346281643,1734864643215,-1282.48,0.00019178,2]
[346281644,1734864643224,-500.0,0.00019178,2]
[346281645,1734864643233,-500.0,0.00019178,2]
[346281646,1734864643242,-996.1,0.00019178,2]
[346281647,1734864643251,-500.0,0.00019178,2]
[346281648,1734864643260,-500.0,0.00019178,2]
[346281649,1734864643269,-500.0,0.00019178,2]
[346281651,1734864643279,-500.0,0.00019178,2]
[346281653,1734864643288,-551.14,0.00019178,2]
[346281655,1734864643297,-500.0,0.00019178,2]
[346281657,1734864643306,-502.48112831,0.00019178,2]
[346281658,1734864643315,-583.39345921,0.00019178,2]
[346281659,1734864643324,-500.0,0.00019178,2]
[346281660,1734864643333,-502.14493748,0.00019178,2]
[346281661,1734864643342,-500.0,0.00019178,2]
[346281662,1734864643351,-1391.03,0.00019178,2]
[346281663,1734864643360,-502.5513842,0.00019178,2]
[346281664,1734864643370,-500.0,0.00019178,2]
[346281665,1734864643380,-254.26423255,0.00019178,2]
[346281666,1734864643389,-1103.33,0.00019178,2]
[346281667,1734864643398,-683.9,0.00019178,2]
[346281668,1734864643407,-500.0,0.00019178,2]
[346281669,1734864643416,-643.26,0.00019178,2]
[346281670,1734864643425,-500.0,0.00019178,2]
[346281671,1734864643434,-503.32415516,0.00019178,2]
[346281672,1734864643445,-500.0,0.00019178,2]
[346281673,1734864643454,-500.0,0.00019178,2]
[346281674,1734864643464,-500.0,0.00019178,2]
[346281675,1734864643472,-500.0,0.00019178,2]
[346281676,1734864643482,-501.63309459,0.00019178,2]
[346281677,1734864643491,-500.0,0.00019178,2]
[346281678,1734864643500,-500.0,0.00019178,2]
[346281679,1734864643509,-5707.15,0.00019178,2]
[346281680,1734864643518,-500.0,0.00019178,2]
[346281681,1734864643527,-500.0,0.00019178,2]
[346281682,1734864643536,-500.0,0.00019178,2]
[346281683,1734864643545,-8186.96,0.00019178,2]
[346281684,1734864643554,-500.0,0.00019178,2]
[346281685,1734864643563,-500.0,0.00019178,2]
[346281686,1734864643572,-500.0,0.00019178,2]
[346281687,1734864643582,-500.0,0.00019178,2]
[346281688,1734864643591,-759.92,0.00019178,2]
[346281689,1734864643601,-2264.56,0.00019178,2]
[346281690,1734864643612,-500.0,0.00019178,2]
[346281691,1734864643621,-500.0,0.00019178,2]
[346281692,1734864643630,-500.0,0.00019178,2]
[346281693,1734864643641,-259.11144539,0.00019178,2]
[346281694,1734864643651,-500.0,0.00019178,2]
[346281695,1734864643662,-500.0,0.00019178,2]
[346281696,1734864643674,-500.0,0.00019178,2]
[346281697,1734864643684,-500.0,0.00019178,2]
[346281698,1734864643695,-500.0,0.00019178,2]
[346281699,1734864643705,-500.0,0.00019178,2]
[346281700,1734864643714,-500.0,0.00019178,2]
[346281701,1734864643723,-500.0,0.00019178,2]
[346281702,1734864643732,-500.0,0.00019178,2]
[346281703,1734864643741,-1547.45,0.00019178,2]
[346281704,1734864643750,-500.0,0.00019178,2]
[346281705,1734864643759,-2241.0,0.00019178,2]
[346281707,1734864643768,-753.36,0.00019178,2]
[346281708,1734864643777,-500.0,0.00019178,2]
[346281709,1734864643787,-500.0,0.00019178,2]
[346281710,1734864643796,-500.0,0.00019178,2]
[346281711,1734864643805,-500.0,0.00019178,2]
[346281712,1734864643815,-500.0,0.00019178,2]
[346281713,1734864643825,-500.0,0.00019178,2]
[346281714,1734864643833,-502.82955108,0.00019178,2]
[346281715,1734864643843,-500.0,0.00019178,2]
[346281716,1734864643852,-500.0,0.00019178,2]
[346281717,1734864643861,-746.55,0.00019178,2]
[346281718,1734864643870,-500.0,0.00019178,2]
[346281719,1734864643880,-500.0,0.00019178,2]
[346281720,1734864643889,-500.0,0.00019178,2]
[346281721,1734864643898,-500.0,0.00019178,2]
[346281723,1734864643911,-500.0,0.00019178,2]
[346281725,1734864643920,-975.9,0.00019178,2]
[346281726,1734864643929,-500.0,0.00019178,2]
[346281727,1734864643937,-505.38484159,0.00019178,2]
[346281728,1734864643946,-500.0,0.00019178,2]
[346281729,1734864643956,-500.0,0.00019178,2]
[346281730,1734864643965,-530.03596858,0.00019178,2]
[346281731,1734864643974,-500.0,0.00019178,2]
[346281732,1734864643984,-500.0,0.00019178,2]
[346281733,1734864643993,-500.0,0.00019178,2]
[346281734,1734864644003,-500.0,0.00019178,2]
[346281735,1734864644015,-500.0,0.00019178,2]
[346281736,1734864644024,-500.0,0.00019178,2]
[346281737,1734864644034,-500.0,0.00019178,2]
[346281738,1734864644043,-500.0,0.00019178,2]
[346281739,1734864644052,-500.0,0.00019178,2]
[346281740,1734864644061,-512.84906496,0.00019178,2]
[346281741,1734864644070,-500.0,0.00019178,2]
[346281742,1734864644079,-500.0,0.00019178,2]
[346281743,1734864644089,-500.0,0.00019178,2]
[346281744,1734864644099,-500.0,0.00019178,2]
[346281746,1734864644109,-644.14,0.00019178,2]
[346281748,1734864644119,-502.43374152,0.00019178,2]
[346281749,1734864644132,-500.0,0.00019178,2]
[346281750,1734864644141,-2129.54,0.00019178,2]
[346281751,1734864644150,-2050.02,0.00019178,2]
[346281752,1734864644160,-2209.58,0.00019178,2]
[346281753,1734864644170,-501.2443797,0.00019178,2]
[346281754,1734864644180,-500.0,0.00019178,2]
[346281755,1734864644189,-500.0,0.00019178,2]
[346281756,1734864644198,-500.0,0.00019178,2]
[346281757,1734864644208,-1324.15,0.00019178,2]
[346281758,1734864644217,-500.0,0.00019178,2]
[346281759,1734864644226,-500.0,0.00019178,2]
[346281760,1734864644235,-500.0,0.00019178,2]
[346281761,1734864644245,-500.0,0.00019178,2]
[346281762,1734864644255,-522.45791023,0.00019178,2]
[346281763,1734864644264,-500.0,0.00019178,2]
[346281764,1734864644273,-519.0652268,0.00019178,2]
[346281765,1734864644282,-500.0,0.00019178,2]
[346281766,1734864644291,-500.0,0.00019178,2]
[346281767,1734864644300,-500.0,0.00019178,2]
[346281768,1734864644309,-500.0,0.00019178,2]
[346281769,1734864644318,-500.0,0.00019178,2]
[346281770,1734864644327,-500.0,0.00019178,2]
[346281771,1734864644336,-500.0,0.00019178,2]
[346281772,1734864644345,-500.0,0.00019178,2]
[346281773,1734864644353,-711.09,0.00019178,2]
[346281774,1734864644362,-503.02007595,0.00019178,2]
[346281775,1734864644371,-500.0,0.00019178,2]
[346281776,1734864644381,-500.0,0.00019178,2]
[346281777,1734864644390,-500.0,0.00019178,2]
[346281778,1734864644399,-500.0,0.00019178,2]